Cogmind - Beta 16 @@@ ROGUE MODE // 2025.10.27 @ 19:23:18 Player: Razzon Result: Destroyed by Y-72 Warden with Railgun Performance ------------- Evolutions (6) 3000 Regions Visited (7) 1400 Robots Destroyed (49) 245 Value Destroyed (1727) 1727 Prototype IDs (16) 320 Alien Tech Used (0) 0 Bonus (800) 800 TOTAL SCORE: 7492 Bonus ------- Registered with UFD 300 Met Optimus in HQ 500 Cogmind --------- Core Integrity 0/1150 Matter 295/300 Energy 99/100 System Corruption 0% Temperature Cool (0) Movement Core (50) Location -4/Upper Caves Parts ------- > --- POWER (2) -------- (None) > --- PROPULSION (4) --- (None) > --- UTILITY (10) ----- (None) > --- WEAPON (3) ------- (None) > --- INVENTORY (5) ---- Large Storage Unit Improved Force Field Enhanced Gauss Cannon Hardcell Cannon DRS Beacon (Ready) Peak State ------------ > --- POWER ------------ Micro Fission Core > --- PROPULSION ------- Flexi-carbon Leg Thunder Leg Antigrav System Improved Gyrokinetic Inverter > --- UTILITY ---------- Advanced Heat Sink Advanced Heat Sink Improved Targeting Computer Advanced Recoil Stabilizer Improved Particle Charger Advanced Hardlight Generator > --- WEAPON ----------- Advanced Variable Charge Gun Advanced Variable Charge Gun Thunder Hammer > --- INVENTORY -------- Antigrav System Large Storage Unit Improved Force Field DRS Beacon [Rating: 85] Favorites ----------- Power Ion Engine Engine Ion Engine Power Core Micro Fission Core Reactor Light Antimatter Reactor Propulsion Aluminum Leg Leg Aluminum Leg Wheel Compact Wheel Hover Unit Linear Gravjet Flight Unit Field Propulsion Drive Utility Small Storage Unit Device Heat Sink Storage Small Storage Unit Processor Improved Targeting Computer Hackware Improved Hacking Suite Protection Utility Shielding Weapon Light Assault Rifle Energy Gun Heavy Laser Energy Cannon Subdweller Beam Cannon Ballistic Gun Light Assault Rifle Ballistic Cannon Light Cannon Launcher Rocket Launcher Impact Weapon Thunder Hammer Slashing Weapon Power Sword Build | -11 -10 -10 -10 -7 -5 -4 -4 ------- Run | Yrd Mat Min Sub Scr Fac Fac Upp Slots Evolved 12 | . . . . . 10 2 . Power 1 | . . . . . 1 . . Propulsion 2 | . . . . . 2 . . Utility 8 | . . . . . 6 2 . Weapon 1 | . . . . . 1 . . Parts Attached 81 | 6 6 1 5 2 27 32 2 Power 10 | 1 1 . 1 . 4 3 . Engine 6 | 1 1 . 1 . 3 . . Core 3 | . . . . . 1 2 . Reactor 1 | . . . . . . 1 . Propulsion 25 | 2 2 . 1 . 9 11 . Treads . | . . . . . . . . Leg 7 | 2 2 . 1 . . 2 . Wheel 10 | . . . . . 8 2 . Hover 7 | . . . . . . 7 . Flight 1 | . . . . . 1 . . Utility 30 | 1 2 . 1 2 10 12 2 Device 18 | . 1 . 1 1 6 9 . Storage 4 | 1 . . . . 2 1 . Processor 4 | . . . . 1 1 2 . Hackware 2 | . . . . . 1 . 1 Protection 2 | . 1 . . . . . 1 Artifact . | . . . . . . . . Weapon 16 | 2 1 1 2 . 4 6 . Energy Gun 5 | 1 . . . . 2 2 . Energy Cannon 2 | . . . 1 . . 1 . Ballistic Gun 4 | 1 1 . . . 2 . . Ballistic Cannon 1 | . . . 1 . . . . Launcher 1 | . . 1 . . . . . Special Weapon . | . . . . . . . . Impact Weapon 1 | . . . . . . 1 . Slashing Weapon 2 | . . . . . . 2 . Piercing Weapon . | . . . . . . . . Special Melee Weapon . | . . . . . . . . Unidentified Prototypes 2 | . . . . . . 1 1 Parts Lost 40 | . 1 . 1 . 14 23 1 Power 4 | . 1 . . . 1 2 . Propulsion 16 | . . . . . 5 10 1 Utility 10 | . . . . . 3 7 . Weapon 10 | . . . 1 . 5 4 . Highest Loss Streak 12 | . 1 . 1 . 10 12 1 To Critical Strikes . | . . . . . . . . Average Backups 5 | 4 7 8 6 6 5 3 4 Power 1 | . 1 2 1 1 1 . . Propulsion 1 | 3 3 2 1 1 . . . Utility 1 | . . 1 2 3 . 1 2 Weapon 1 | . 1 2 1 1 1 . 2 Tool/Special . | . . . . . . . . Unused Backups 14 | . 4 2 . . 5 . 3 Power 3 | . . . . . 3 . . Propulsion 4 | . 3 1 . . . . . Utility 2 | . . . . . 1 . 1 Weapon 4 | . 1 1 . . . . 2 Tool/Special 1 | . . . . . 1 . . Average Slot Usage (%) 86 | . 97 100 99 100 91 36 40 Engine 9 | . 13 14 14 14 8 . . Leg 17 | . 28 28 28 28 3 2 . Wheel 4 | . . . . . 16 . 4 Device 12 | . . 14 14 13 18 6 9 Storage 9 | . 14 14 14 14 6 . . Processor 3 | . . . . . 9 7 9 Protection 2 | . 12 . . . 4 . 4 Energy Gun 1 | . 4 . . . 4 2 . Energy Cannon 5 | . . . 2 14 2 . . Ballistic Gun 12 | . 23 28 16 14 6 . . Peak Build Rating 85 | 6 7 8 10 18 67 85 48 Average Rating 24 | 4 6 7 8 9 52 38 40 On Entrance 10 | . 6 7 7 10 18 2 31 Avg Prop Armor Cover (%) 9 | . . . . . 5 14 . Naked Turns 108 | . . . . . 62 20 26 Heaviest Build 53 | 11 14 16 21 21 53 36 22 Greatest Support 64 | 20 20 20 20 20 64 43 10 Greatest Overweight (x) 4 | 1 . . 1 1 2 4 2 Average Overweight (x) . | . . . . . . . 1 Largest Inventory Capacity 15 | 8 8 8 8 8 8 15 5 Average Capacity 7 | 7 8 8 8 8 7 5 5 Most Carried 8 | 6 8 8 8 8 8 5 5 Average Carried 6 | 4 7 7 7 7 6 4 5 Final Capacity 8 | 8 8 8 8 8 5 5 5 Final Carried 8 | 6 8 8 8 8 5 5 5 Class Distribution -------------------- 77% | Mutant 10% | Scavenger-Tank 9% | Tank 3% | Scavenger-Mutant Dominant Class ---------------- Mutant | -10/Materials Mutant | -10/Mines Mutant | -10/Subcaves Mutant | -7/Scraptown Scavenger-Tank | -5/Factory Mutant | -4/Factory Mutant | -4/Upper Caves Resources | -11 -10 -10 -10 -7 -5 -4 -4 ----------- Run | Yrd Mat Min Sub Scr Fac Fac Upp Matter Collected 1338 | 260 105 55 18 62 524 289 25 Remotely . | . . . . . . . . Salvage Created 2171 | . 346 . 42 . 757 998 28 Parts 92 | . 18 . . . 52 21 1 Haulers Intercepted 1 | . . . . . . 1 . Recyclers Shooed 6 | . 1 . . . 3 2 . Parts Field Recycled . | . . . . . . . . Retrieved Matter . | . . . . . . . . Parts Self-Destructed 3 | . . . . . . . 3 Prevented . | . . . . . . . . Parts Restored . | . . . . . . . . Kills | -11 -10 -10 -10 -7 -5 -4 -4 ------- Run | Yrd Mat Min Sub Scr Fac Fac Upp Combat Hostiles Destroyed 36 | . 8 . 1 . 14 12 1 Melee 5 | . . . . . . 4 1 Guns 20 | . 8 . . . 11 1 . Cannons 3 | . . . 1 . 2 . . AOE 1 | . . . . . 1 . . Classes Destroyed 13 | . 4 . 1 . 5 3 . Worker 3 | . . . . . 2 1 . Builder 2 | . . . . . 2 . . Tunneler 1 | . . . . . . 1 . Hauler 1 | . . . . . . 1 . Recycler 4 | . 1 . . . 1 2 . Operator 1 | . . . . . 1 . . Watcher 1 | . 1 . . . . . . Swarmer 16 | . 3 . . . 8 4 1 Grunt 8 | . 5 . . . . 3 . Sentry 1 | . . . . . . 1 . Hunter 6 | . . . . . 2 4 . Programmer 4 | . . . . . 4 . . Subdweller 1 | . . . 1 . . . . Best Kill Streak 8 | . 3 . 1 . 8 4 1 Combat Bots Only 4 | . 3 . 1 . 4 4 1 Max Kills in Single Turn 4 | . 1 . 1 . 4 1 1 Gunslinging 1 | . . . . . 1 . . Exploded 1 | . . . . . 1 . . Melee 1 | . . . . . . 1 1 Uniques/NPCs Destroyed . | . . . . . . . . Combat | -11 -10 -10 -10 -7 -5 -4 -4 -------- Run | Yrd Mat Min Sub Scr Fac Fac Upp Hostile Shots Fired 528 | . 67 . 8 . 164 245 44 Missed 152 | . 14 . 2 . 46 74 16 Hits 376 | . 53 . 6 . 118 171 28 Melee 2 | . . . . . . . 2 Projectile 374 | . 53 . 6 . 118 171 26 AOE 1 | . . . . . . 1 . Critical Strikes 8 | . . . . . 6 2 . Part Disruptions 1 | . . . . . 1 . . Damage Taken 5828 | . 524 . 121 . 1778 2838 567 Core 1870 | . 102 . 60 . 534 936 238 Absorbed by Shields 681 | . . . . . 681 . . Redirected to Shielding 54 | . 6 . . . 48 . . Core Remaining (%) 60 | 100 . . . 35 46 . . Volleys Fired 115 | . 52 1 7 . 47 8 . Largest 3 | . 2 1 2 . 3 2 . Hottest 172 | . 70 33 50 . 172 160 . Shots Fired 252 | . 91 1 14 . 133 13 . Gun 240 | . 91 . 8 . 128 13 . Cannon 11 | . . . 6 . 5 . . Launcher 1 | . . 1 . . . . . Special . | . . . . . . . . Kinetic 168 | . 74 . 14 . 80 . . Thermal 83 | . 17 . . . 53 13 . Explosive 1 | . . 1 . . . . . Electromagnetic . | . . . . . . . . Robot Hit Streak 10 | . 8 . 4 . 10 3 . Robot Miss Streak 7 | . 5 . 2 . 7 5 . Penetration Max 1 | . . . . . 1 . . Secondary Targets 2 | . 1 . . . 1 . . Max Gunslinging Chain 1 | . 1 . . . 1 . . Shots Hit Robots 199 | . 58 . 10 . 74 54 3 Core Hits 75 | . 26 . 3 . 33 11 2 Critical Kills . | . . . . . . . . Critical Parts Destroyed 11 | . . . . . 5 6 . Critical Strikes 15 | . 2 . . . 6 7 . Burn 3 | . 2 . . . 1 . . Destroy 5 | . . . . . 5 . . Smash 6 | . . . . . . 6 . Sever 1 | . . . . . . 1 . Melee Attacks 70 | . . . . . . 65 5 Impact 48 | . . . . . . 48 . Slashing 22 | . . . . . . 17 5 Piercing . | . . . . . . . . Sneak Attacks 7 | . . . . . . 7 . Combat Hostiles . | . . . . . . . . Follow-up Attacks 7 | . . . . . . 6 1 Damage Inflicted 5741 | . 559 . 106 . 2119 2833 124 Guns 2339 | . 559 . 55 . 1566 159 . Cannons 161 | . . . 51 . 110 . . Explosions 443 | . . . . . 443 . . Melee 2798 | . . . . . . 2674 124 Ramming . | . . . . . . . . Kinetic 1577 | . 423 . 106 . 1048 . . Thermal 923 | . 136 . . . 628 159 . Explosive 443 | . . . . . 443 . . Electromagnetic . | . . . . . . . . Impact 2141 | . . . . . . 2141 . Slashing 657 | . . . . . . 533 124 Piercing . | . . . . . . . . Highest Corruption 4 | . . . . . 4 . . Average Corruption 1 | . . . . . 1 . . Corruption Purged . | . . . . . . . . Corruption Blocked . | . . . . . . . . Effects 7 | . . . . . 7 . . Matter Fused 1 | . . . . . 1 . . Heat Flow Errors 4 | . . . . . 4 . . Alerts 1 | . . . . . 1 . . Weapon Failures 1 | . . . . . 1 . . Overload Shots . | . . . . . . . . Overflow Damage 790 | . . . . . 69 695 26 Projectiles . | . . . . . . . . Explosions 69 | . . . . . 69 . . Melee 721 | . . . . . . 695 26 Knockbacks 10 | . . . . . . 10 . Impact 10 | . . . . . . 10 . Kinetic . | . . . . . . . . Secondary . | . . . . . . . . Self-Inflicted Damage 221 | . . . . . 221 . . Shots 3 | . . . . . 3 . . Rammed . | . . . . . . . . Targets Rammed . | . . . . . . . . Kicked . | . . . . . . . . Crushed . | . . . . . . . . Highest Temperature 315 | . 312 . . . 315 48 . Average Temperature 81 | . 121 . . . 70 15 . Received Heat Transfer 725 | . 222 . 30 . 308 138 27 Effects 2 | . . . . . 2 . . Energy Bleed 2 | . . . . . 2 . . Siege Activations . | . . . . . . . . Martial Activations . | . . . . . . . . Shielding Activations . | . . . . . . . . Robots Disrupted . | . . . . . . . . Combat Hostiles . | . . . . . . . . Robots Corrupted 9 | . . . . . . 9 . Combat Hostiles 7 | . . . . . . 7 . Parts Fried 9 | . . . . . . 9 . Impact Corruptions 20 | . . . . . . 20 . Robots Melted . | . . . . . . . . Combat Hostiles . | . . . . . . . . Parts Melted 4 | . . . . . 4 . . Heat Transferred 1887 | . 555 . . . 1147 185 . Parts Sabotaged . | . . . . . . . . Parts Stolen . | . . . . . . . . Parts Stripped . | . . . . . . . . Power Chain Reactions . | . . . . . . . . Alert | -11 -10 -10 -10 -7 -5 -4 -4 ------- Run | Yrd Mat Min Sub Scr Fac Fac Upp Maximum Alert Level 1 | . . . . . 1 . . Low Security (%) 93 | 100 100 100 . . 84 100 . Level 1 6 | . . . . . 15 . . Level 2 . | . . . . . . . . Level 3 . | . . . . . . . . Level 4 . | . . . . . . . . Level 5 . | . . . . . . . . High Security . | . . . . . . . . Max Security . | . . . . . . . . Peak Influence 256 | . 120 9 . . 256 123 . Initial 112 | . . 9 . . . 112 . Average 55 | . 51 . . . 84 49 . Influence Increases 1347 | . 269 9 . . 654 380 35 Destroy 0b10 Robot/C 700 | . 160 . . . 280 240 20 Destroy 0b10 Robot/NC 65 | . 10 . . . 30 25 . Destroy Leader 114 | . 32 . . . 40 42 . Successful Hack 69 | . 22 . . . 14 33 . Select Force Hacks 30 | . 30 . . . . . . Disable Machine 60 | . . . . . 60 . . Destroy Structure 69 | . . 9 . . 50 10 . Lose Combat Pursuer 240 | . 15 . . . 180 30 15 Influence Decreases 1332 | . 245 33 . . 423 558 73 Entered New Map 154 | . . 15 . . . 119 20 Time Decay 900 | . 235 18 . . 283 311 53 Lost Part 278 | . 10 . . . 140 128 . Squads Dispatched 14 | . 2 . . . 8 4 . Investigation 3 | . 1 . . . . 2 . Extermination 4 | . . . . . 3 1 . Reinforcement 7 | . 1 . . . 5 1 . Assault . | . . . . . . . . Garrison . | . . . . . . . . Intercept . | . . . . . . . . Searches Triggered . | . . . . . . . . Construction Impeded 1 | . . . . . 1 . . Haulers Reinforced 1 | . . . . . . 1 . Active Scanning Responses . | . . . . . . . . Cargo Convoy Interrupts . | . . . . . . . . Stealth | -11 -10 -10 -10 -7 -5 -4 -4 --------- Run | Yrd Mat Min Sub Scr Fac Fac Upp Distress Signals 3 | . 2 . . . 1 . . Communications Jammed 3 | . . . . . 3 . . Distress Signals 3 | . . . . . 3 . . Times Spotted 88 | . 19 . 2 . 46 14 7 Peak Tracking Total 11 | . 7 . 2 . 11 4 9 Tactical Retreats 10 | . 1 . . . 6 2 1 Traps | -11 -10 -10 -10 -7 -5 -4 -4 ------- Run | Yrd Mat Min Sub Scr Fac Fac Upp Traps Triggered 4 | . . . . . 2 2 . Indirectly . | . . . . . . . . Trap Hack Attempts . | . . . . . . . . Triggered . | . . . . . . . . Disarmed 1 | . 1 . . . . . . Reprogrammed 5 | . . . . . 5 . . Reused . | . . . . . . . . Traps Extracted . | . . . . . . . . Installed . | . . . . . . . . Triggered . | . . . . . . . . Machines | -11 -10 -10 -10 -7 -5 -4 -4 ---------- Run | Yrd Mat Min Sub Scr Fac Fac Upp Machines Disabled 4 | . . . . . 4 . . Max in Single Turn 3 | . . . . . 3 . . Garrison Access 1 | . . . . . 1 . . Machines Repaired . | . . . . . . . . Machines Dismantled . | . . . . . . . . Machines Sabotaged . | . . . . . . . . Overloaded Fab Kills . | . . . . . . . . Hacking | -11 -10 -10 -10 -7 -5 -4 -4 --------- Run | Yrd Mat Min Sub Scr Fac Fac Upp Machines Accessed 14 | . 4 . . 1 6 3 . Terminals 10 | . 3 . . . 4 3 . Fabricators 1 | . . . . . 1 . . Repair Stations . | . . . . . . . . Recycling Units 1 | . 1 . . . . . . Scanalyzers . | . . . . . . . . Garrison Access 1 | . . . . . 1 . . Total Hacks 40 | . 16 . . 2 15 7 . Successful 20 | . 9 . . 2 7 2 . Failed 20 | . 7 . . . 8 5 . Catastrophic 3 | . . . . . 2 1 . Database Lockouts . | . . . . . . . . Manual 7 | . 3 . . . 3 1 . Terminals 31 | . 15 . . . 9 7 . Fabricators 3 | . . . . . 3 . . Repair Stations . | . . . . . . . . Recycling Units 1 | . 1 . . . . . . Scanalyzers . | . . . . . . . . Garrison Access 3 | . . . . . 3 . . Terminal Hacks 16 | . 8 . . 2 4 2 . Record 4 | . . . . 2 . 2 . Robot Analysis 1 | . 1 . . . . . . Open DSF 1 | . . . . . 1 . . Level Access Points 1 | . 1 . . . . . . Branch Access Points 1 | . 1 . . . . . . Locate Traps 4 | . 2 . . . 2 . . Disarm Traps 1 | . 1 . . . . . . Reprogram Traps 1 | . . . . . 1 . . Zone Layout 2 | . 2 . . . . . . Fabricator Hacks 2 | . . . . . 2 . . Network Status 1 | . . . . . 1 . . Build 1 | . . . . . 1 . . Repair Station Hacks . | . . . . . . . . Recycling Unit Hacks . | . . . . . . . . Scanalyzer . | . . . . . . . . Garrison Access Hacks 1 | . . . . . 1 . . Seal Access 1 | . . . . . 1 . . Unauthorized Hacks 1 | . 1 . . . . . . Terminals . | . . . . . . . . Fabricators . | . . . . . . . . Repair Stations . | . . . . . . . . Recycling Units 1 | . 1 . . . . . . Tunnel 1 | . 1 . . . . . . Scanalyzers . | . . . . . . . . Garrison Access . | . . . . . . . . Data Cores Recovered 1 | . . . . . 1 . . Used . | . . . . . . . . Hacking Detections 11 | . 3 . . . 5 3 . Full Trace Events 1 | . . . . . . 1 . Feedback Events . | . . . . . . . . Feedback Blocked . | . . . . . . . . Robot Schematics Acquired . | . . . . . . . . Robots Built . | . . . . . . . . Authchips . | . . . . . . . . Time . | . . . . . . . . Total Robot Build Rating . | . . . . . . . . Part Schematics Acquired . | . . . . . . . . Parts Built 2 | . . . . . 2 . . Authchips . | . . . . . . . . Time 106 | . . . . . 106 . . Total Part Build Rating 12 | . . . . . 12 . . Part Studies Acquired . | . . . . . . . . Parts Repaired . | . . . . . . . . Time . | . . . . . . . . Parts Recycled . | . . . . . . . . Recycled Matter . | . . . . . . . . Retrieved Matter . | . . . . . . . . Retrieved Components . | . . . . . . . . Parts Scanalyzed . | . . . . . . . . Part Schematics Acquired . | . . . . . . . . Parts Damaged . | . . . . . . . . Bothacking | -11 -10 -10 -10 -7 -5 -4 -4 ------------ Run | Yrd Mat Min Sub Scr Fac Fac Upp Used RIF Installer . | . . . . . . . . Robots Hacked . | . . . . . . . . Non-combat . | . . . . . . . . Combat . | . . . . . . . . Robot Hacks Applied . | . . . . . . . . Relay Couplers Released . | . . . . . . . . Fabnet Peak Effective % . | . . . . . . . . Robots Rewired . | . . . . . . . . Allies Hacked . | . . . . . . . . Hacks Repelled . | . . . . . . . . Allies | -11 -10 -10 -10 -7 -5 -4 -4 -------- Run | Yrd Mat Min Sub Scr Fac Fac Upp Total Allies . | . . . . . . . . Largest Group . | . . . . . . . . Highest-Rated Group . | . . . . . . . . Highest-Rated Ally . | . . . . . . . . Total Orders . | . . . . . . . . Ally Attacks . | . . . . . . . . Total Damage . | . . . . . . . . Kills . | . . . . . . . . Allies Corrupted . | . . . . . . . . Allies Melted . | . . . . . . . . Intel | -11 -10 -10 -10 -7 -5 -4 -4 ------- Run | Yrd Mat Min Sub Scr Fac Fac Upp Active Infowar (turns) 2666 | . 16 591 440 325 1294 . . Optics 1529 | . . . 64 325 1140 . . Sensors 818 | . . . . . 818 . . Terrain 983 | . 16 591 376 . . . . Seismic 470 | . . . . . 470 . . Jamming 377 | . . . . . 377 . . Robot Analysis Total 1 | . 1 . . . . . . Derelict Logs Recovered 4 | . . 1 . 2 . . 1 Drone Launches . | . . . . . . . . Drone Recoveries . | . . . . . . . . Exploration | -11 -10 -10 -10 -7 -5 -4 -4 ------------- Run | Yrd Mat Min Sub Scr Fac Fac Upp Turns Passed 6578 | 68 570 591 440 2218 1482 960 249 Spaces Moved 4598 | 47 351 358 294 1689 922 697 240 Core 373 | 4 . . . . 98 216 55 Treads . | . . . . . . . . Legs 3059 | 43 351 358 294 1689 123 201 . Wheels 947 | . . . . . 701 61 185 Hover 219 | . . . . . . 219 . Flight . | . . . . . . . . Fastest Speed 33 | 50 120 120 120 120 50 33 50 Average Speed 117 | 115 120 120 128 130 110 98 97 Slowest Speed 260 | 120 120 120 190 190 260 250 150 Overloaded Moves . | . . . . . . . . Propulsion Burnouts . | . . . . . . . . Robots Hopped . | . . . . . . . . Potential Cave-ins . | . . . . . . . . Cave-ins Triggered . | . . . . . . . . Exploration Rate (%) 39 | 4 48 71 26 94 28 15 29 Regions Visited 7 Branch Regions 4 Pre-discovered Areas 3 | . 1 . . 1 . . 1 Known Exits Taken 1 | . 1 . . . . . . Unknown Exits Taken 6 | 1 . 1 1 1 1 1 . Scrap Searched 4 | . . 1 . 2 . . 1 Spaces Dug . | . . . . . . . . Terrain Destroyed 37 | . . 10 . . 23 4 . Melee . | . . . . . . . . Projectile 9 | . . . . . 5 4 . AOE 28 | . . 10 . . 18 . . Terrain Rammed . | . . . . . . . . Walls Destroyed . | . . . . . . . . Machines Disabled . | . . . . . . . . Actions | -11 -10 -10 -10 -7 -5 -4 -4 --------- Run | Yrd Mat Min Sub Scr Fac Fac Upp Total 5432 | 58 425 519 345 1701 1291 845 248 Wait 476 | . 1 155 34 1 243 41 1 Move 4591 | 46 350 357 293 1688 921 696 240 Hop . | . . . . . . . . Pick Up 45 | 6 8 2 3 6 15 5 . Fast Attach 46 | 6 2 . . . 6 30 2 Attach 16 | . . . 1 1 8 6 . Detach 1 | . . . . . . 1 . Swap 31 | . 4 2 4 1 20 . . Drop 37 | . 8 2 3 4 18 1 1 Fire 115 | . 52 1 7 . 47 8 . Melee 61 | . . . . . . 57 4 Ram . | . . . . . . . . Kick . | . . . . . . . . Crush . | . . . . . . . . Escape Stasis 13 | . . . . . 13 . . Rewire . | . . . . . . . . Trap . | . . . . . . . . Miscellaneous . | . . . . . . . . Route ------- -11/Scrapyard -10/Materials (discovered 4 exits: *Mat x3 / *Min) -10/Mines (discovered 2 exits: *Mat / [*Sub]) -10/Subcaves -7/Scraptown (discovered 2 exits: *Fac x2) -5/Factory (discovered 2 exits: *Fac x2) -4/Factory -4/Upper Caves History --------- Turn | Location | Event 16 | -11/Scrapyard | Discovered new exit (range 16) 69 | -11/Scrapyard | Entered Materials 89 | -10/Materials | Identified exit to Materials 317 | -10/Materials | Build established: Mutant 442 | -10/Materials | Identified exit to Mines 639 | -10/Materials | Entered Mines 721 | -10/Mines | Received a Rocket Launcher from a helpful Derelict 736 | -10/Mines | Learned Materials trap positions 756 | -10/Mines | Discovered exit to Materials (range 7) 1125 | -10/Mines | A weapon hastily lodged in a ceiling crevice suddenly fell to the ground 1215 | -10/Mines | Discovered new exit (range 5) 1230 | -10/Mines | Entered Subcaves 1231 | -10/Subcaves | Approached by a straggling Scientist 1306 | -10/Subcaves | Core integrity fell below 50% 1605 | -10/Subcaves | Scientist uncovered a shortcut to Scraptown 1670 | -10/Subcaves | Entered Scraptown 1798 | -7/Scraptown | Heard Great Nut preacher, LISTEN AND RECITE! 1843 | -7/Scraptown | Learned location of Extension (-6) 2149 | -7/Scraptown | Scanned Subdweller tech in exchange for log data 2155 | -7/Scraptown | Learned Research terminal intel 2317 | -7/Scraptown | Visited Bundlers 2375 | -7/Scraptown | Visited Red Mages 2508 | -7/Scraptown | Discovered new exit (range 9) 2579 | -7/Scraptown | Visited Fellowship of the Rings 2636 | -7/Scraptown | Visited UFD Registry 2670 | -7/Scraptown | Visited SPCMW 2693 | -7/Scraptown | Visited Comm Corps 2748 | -7/Scraptown | Visited Assassins FH 2988 | -7/Scraptown | Registered with UFD as "Monosys" 3015 | -7/Scraptown | Visited Derelict Rescue Squad 3023 | -7/Scraptown | Found DRS Beacon 3047 | -7/Scraptown | Visited LU-1G1's Boring Crew 3103 | -7/Scraptown | Visited Research Penetration Think Tank 3143 | -7/Scraptown | Visited Botcube Research 3179 | -7/Scraptown | Visited Scrapoid Pod Storage 3197 | -7/Scraptown | Visited Scrap Suit Storage 3225 | -7/Scraptown | Visited Junk Repository 3275 | -7/Scraptown | Discovered new exit (range 5) 3373 | -7/Scraptown | Visited A0-MCA Data Center 3381 | -7/Scraptown | Given an A- rating by A0-MCA 3408 | -7/Scraptown | Visited Chapter 10 3445 | -7/Scraptown | Visited Curators Association 3575 | -7/Scraptown | Delivered Scrap Shield to a Scientist 3699 | -7/Scraptown | Found Botcube 3746 | -7/Scraptown | Found A0-MCA's Component Scanner 3792 | -7/Scraptown | Met Optimus 3792 | -7/Scraptown | Accepted into 0bPrime 3888 | -7/Scraptown | Entered Factory 3888 | -5/Factory | Evolved 10 slots: Power x1, Propulsion x2, Utility x6, Weapon x1 4421 | -5/Factory | Build established: Tank 4908 | -5/Factory | Fabricated Imp. Kinecellerator? 5087 | -5/Factory | Build established: Scavenger-Tank 5252 | -5/Factory | Lost 3 parts (1u2w) 5277 | -5/Factory | Spotted B-75 Beast 5302 | -5/Factory | Discovered new exit (range 13) 5308 | -5/Factory | Released all parts (7) 5339 | -5/Factory | Lost 10 parts (1p4n2u3w) 5356 | -5/Factory | Core integrity fell below 50% 5359 | -5/Factory | Discovered new exit (range 15) 5370 | -5/Factory | Entered another Factory area 5370 | -4/Factory | Evolved 2 slots: Utility x2 5623 | -4/Factory | Build established: Mutant 5855 | -4/Factory | Lost 12 parts (1p4n5u2w) 5995 | -4/Factory | Core integrity fell below 50% 6060 | -4/Factory | Lost 5 parts (4n1w) 6130 | -4/Factory | Discovered new exit (range 15) 6221 | -4/Factory | Core integrity fell below 20% 6245 | -4/Factory | Lost 4 parts (2n1u1w) 6330 | -4/Factory | Entered Upper Caves 6332 | -4/Upper Caves | UFD Scientist delivered a prototype 6333 | -4/Upper Caves | Found Prototype Protection 6333 | -4/Upper Caves | Identified Enh. Scrap Shield 6472 | -4/Upper Caves | Learned location of Quarantine (-3) 6533 | -4/Upper Caves | Attracted the attention of an 0b10 outpost 6553 | -4/Upper Caves | Released all parts (7) 6579 | -4/Upper Caves | Destroyed by Y-72 Warden with Railgun Last Messages --------------- 06535_ Penetrated by Slug. 06535_ Slug penetrates Wall. 06536_ Power Sword follow-up attack on S-27 Virus. 06536_ Destroyed VTOL Module. 06536_ Wheel destroyed. 06537_ Y-72 Warden: "REQUESTING BACKUP." 06541_ Slug penetrates L-61 Swordsman. 06541_ L-61 Swordsman suffers critical hit (Destroy). 06541_ Slug penetrates Wall. 06541_ S-27 Virus destroyed. 06544_ L-61 Swordsman destroyed. 06546_ Dropped Enh. Scrap Shield. 06548_ Microactuators fries itself beyond repair. 06550_ Power Sword fries itself beyond repair. 06553_ Released Graphene Brace. 06553_ Released Power Sword. 06553_ Released Imp. Targeting Computer. 06553_ Released Power Sword. 06553_ Released Graphene Brace. 06553_ Released Imp. Hacking Suite. Map ----- +----------------------------------------------------+ | ???????????# #???????## #???### #???????????? | | ???????????# #???????## ##??# # #??????###### | | ???????????# ######### ##?# # ###??????# | | ???????????# ### ###????????# | | ???????????###### ## ## #??????????# #### | | ????????????????# " ## ##%!#??????????# | | ????????????###?# " ## # #??????????## | | ????????????# ### "" ####????????# | | ????????????# " ##??????## | | ???????????## """ " ##???### # | | ??????????## "" "" ### ##?## ## | | ??????????# # " "" #?## ### # | | ?????????## ## "" ######## # | | ?????????# ## "" #????##### ### | | ?????###?# "" #?????????# ####?# # | | ????## #?# " ####????#####??? # | | ????# #?## ## # ????? #?##?? | | ????# #??# ### # #??#### ## #? | | ????# #??# ##?# ## ### #???"# # ## ## | | ????# #??# #???# ######### #??? # ##? | | ????## #####????####????### #???? #?? | | ?????# ## #####????????# #???? #??? | | ?????# ##???????# #????# #### | | ?????## ##??????# #????# [ # | | ?????## ######?# ######"% | | ?????# ## ###@ Y# /!/ !% %! | | ?????# g ######! ## ### | | ????## #????# ##??????# | | ????# ##????## "#???????# | | ????# ## l #??????# ##???????### | | ????###?### ##??????## ##??????????? | | ??????????## ### #######????????##"#???????????? | | ???????????###?#####???????????????# #???????????? | | ???????????????????????????????????###???????????? | | ?????????????????????????????????????????????????? | | ?????????????????????????????????????????????????? | | ?????????????????????????????????????????????????? | | ?????????????????????????????????????????????????? | | ?????????????????????????????????????????????????? | | ?????????????????????????????????????????????????? | | ?????????????????????????????????????????????????? | | ?????????????????????????????????????????????????? | | ?????????????????????????????????????????????????? | | ?????????????????????????????????????????????????? | | ?????????????????????????????????????????????????? | | ?????????????????????????????????????????????????? | | ?????????????????????????????????????????????????? | | ?????????????????????????????????????????????????? | | | | | +----------------------------------------------------+ Best States ------------- Heat Dissipation 81 Energy Generation 30 Energy Capacity 1090 Matter Stores 300 Matter Capacity 400 Sight Range 22 Robot Scan Range 16 Terrain Scan Range 14 Terrain Scan Density 10 Jamming Range 12 Armor Coverage 800 Utility Shielding 33 Evasion (%) 70 Targeting Accuracy 12 Recoil Reduction 6 Energy Filtering 30 Particle Charging 20 Kinecelleration 40 Offensive Hacking 12 Defensive Hacking 10 Item Schematics ----------------- None Robot Schematics ------------------ None Fabricated ------------ Imp. Kinecellerator | x2 | -5/Factory | Preloaded Repaired ---------- Nothing Studied --------- None Alien Tech Used ----------------- None Achievements -------------- Hammer Time I Laugh At Your Crits Loot Taster Streaker Wiki Contributor Challenges ------------ None Game ------ Seed BraceNanofilamentsTerminator Manual? 0 Play Time 01:15:22 Cumulative 34.3 hours Start 2025.10.27 @ 15:15:41 End 2025.10.27 @ 19:23:18 Sessions 5 Manual Loads 0 Difficulty Rogue Special Mode None Game No. 35 Rogue 35 Adventurer 0 Explorer 0 Win Type - Total 0 Types 0/0/0/0/0/0/0/0/0/0 Lore% 31 Gallery% 30 Achievement% 18 Wizard Run 0 Options --------- Layout 0 ASCII 0 Keyboard 1 Movement Numpad Keybinds 0 Fullscreen 1 Font 18/SmallcapsGlow Map View 76x50 Zoom Use 0% Tactical HUD 1 Map Filters NONE Filters NONE Steam 1 RUN: 9d7aa949-26e5-4c90-84aa-4ec06b9f7afe